[Event "Titled Tuesday Blitz August 17 2021"]
[White "Alavi, Sayed Javad"]
[Black "Williams, John M"]
[WhiteFideId "12500607"]
[BlackFideId "2046636"]
[WhiteElo "2495"]
[BlackElo "2404"]
[Result "1-0"]
[Round "01"]
[TimeControl "180+1"]
[Date "2021.08.17"]
[WhiteClock "0:01:04"]
[BlackClock "0:01:19"]

1. Nf3 {[%clk 0:02:59]}  Nf6 {[%clk 0:02:59]} 2. c4 {[%clk 0:02:59]}  e6 {[%clk 0:02:58]} 3. Nc3 {[%clk 0:02:56]}  d5 {[%clk 0:02:58]} 4. d4 {[%clk 0:02:56]}  Bb4 {[%clk 0:02:58]} 5. Qa4+ {[%clk 0:02:56]}  Nc6 {[%clk 0:02:57]} 6. Bg5 {[%clk 0:02:53]}  h6 {[%clk 0:02:56]} 7. Bxf6 {[%clk 0:02:54]}  Qxf6 {[%clk 0:02:56]} 8. e3 {[%clk 0:02:54]}  O-O {[%clk 0:02:54]} 9. Be2 {[%clk 0:02:51]}  dxc4 {[%clk 0:02:53]} 10. Bxc4 {[%clk 0:02:51]}  a6 {[%clk 0:02:46]} 11. O-O {[%clk 0:02:44]}  Bd6 {[%clk 0:02:38]} 12. Ne4 {[%clk 0:02:24]}  Qe7 {[%clk 0:02:38]} 13. a3 {[%clk 0:02:16]}  e5 {[%clk 0:02:36]} 14. d5 {[%clk 0:02:10]}  Nb8 {[%clk 0:02:31]} 15. Rac1 {[%clk 0:01:59]}  Nd7 {[%clk 0:02:28]} 16. Be2 {[%clk 0:01:51]}  Nb6 {[%clk 0:02:20]} 17. Qb3 {[%clk 0:01:49]}  Bd7 {[%clk 0:01:51]} 18. Nfd2 {[%clk 0:01:44]}  Ba4 {[%clk 0:01:40]} 19. Qa2 {[%clk 0:01:42]}  f5 {[%clk 0:01:33]} 20. Nxd6 {[%clk 0:01:36]}  cxd6 {[%clk 0:01:34]} 21. b3 {[%clk 0:01:14]}  Bb5 {[%clk 0:01:24]} 22. Nc4 {[%clk 0:01:09]}  Bxc4 {[%clk 0:01:24]} 23. bxc4 {[%clk 0:01:04]}  Nd7 {[%clk 0:01:23]} 24. c5 {[%clk 0:01:03]}  Nxc5 {[%clk 0:01:22]} 25. Rxc5 {[%clk 0:01:03]}  dxc5 {[%clk 0:01:19]} 26. d6+ {[%clk 0:01:04]}  Qf7 {[%clk 0:01:19]} 27. Bc4 {[%clk 0:01:04]} 1-0


[Site "https://www.chess.com"]

[Event "Titled Tuesday Blitz August 17 2021"]
[White "AleksanderHnydiuk"]
[Black "Baradaran, Arman"]
[BlackFideId "880515"]
[WhiteElo "2612"]
[BlackElo "2132"]
[Result "1/2-1/2"]
[Round "01"]
[TimeControl "180+1"]
[Date "2021.08.18"]
[WhiteClock "0:00:04"]
[BlackClock "0:00:06"]

1. Nf3 {[%clk 0:02:59]}  d5 {[%clk 0:03:00]} 2. d4 {[%clk 0:02:59]}  Nf6 {[%clk 0:02:59]} 3. c4 {[%clk 0:03:00]}  c6 {[%clk 0:02:59]} 4. Qc2 {[%clk 0:02:57]}  e6 {[%clk 0:02:53]} 5. g3 {[%clk 0:02:56]}  Nbd7 {[%clk 0:02:51]} 6. Bg2 {[%clk 0:02:56]}  Bd6 {[%clk 0:02:52]} 7. O-O {[%clk 0:02:56]}  O-O {[%clk 0:02:52]} 8. Nbd2 {[%clk 0:02:54]}  e5 {[%clk 0:02:52]} 9. cxd5 {[%clk 0:02:52]}  cxd5 {[%clk 0:02:53]} 10. dxe5 {[%clk 0:02:51]}  Nxe5 {[%clk 0:02:54]} 11. Nxe5 {[%clk 0:02:51]}  Bxe5 {[%clk 0:02:55]} 12. Nf3 {[%clk 0:02:51]}  Bd6 {[%clk 0:02:53]} 13. Rd1 {[%clk 0:02:35]}  Qe7 {[%clk 0:02:02]} 14. Nd4 {[%clk 0:02:29]}  Bg4 {[%clk 0:01:54]} 15. h3 {[%clk 0:02:27]}  Rac8 {[%clk 0:01:52]} 16. Qd3 {[%clk 0:02:21]}  Be6 {[%clk 0:01:44]} 17. Be3 {[%clk 0:02:18]}  a6 {[%clk 0:01:21]} 18. Rac1 {[%clk 0:02:17]}  h6 {[%clk 0:01:19]} 19. Nxe6 {[%clk 0:02:00]}  fxe6 {[%clk 0:01:18]} 20. Rxc8 {[%clk 0:01:58]}  Rxc8 {[%clk 0:01:17]} 21. Rc1 {[%clk 0:01:59]}  Rxc1+ {[%clk 0:00:58]} 22. Bxc1 {[%clk 0:01:59]}  Qc7 {[%clk 0:00:58]} 23. Be3 {[%clk 0:01:57]}  h5 {[%clk 0:00:41]} 24. Bg5 {[%clk 0:01:39]}  Nh7 {[%clk 0:00:11]} 25. Bd2 {[%clk 0:01:35]}  Nf6 {[%clk 0:00:11]} 26. Bc3 {[%clk 0:01:34]}  Be5 {[%clk 0:00:09]} 27. Bxe5 {[%clk 0:01:25]}  Qxe5 {[%clk 0:00:10]} 28. Qb3 {[%clk 0:01:25]}  Qxe2 {[%clk 0:00:07]} 29. Qxb7 {[%clk 0:01:24]}  Qe1+ {[%clk 0:00:05]} 30. Bf1 {[%clk 0:01:21]}  Ne4 {[%clk 0:00:05]} 31. Qb6 {[%clk 0:01:13]}  Nd2 {[%clk 0:00:05]} 32. Qxa6 {[%clk 0:01:12]}  h4 {[%clk 0:00:05]} 33. Qe2 {[%clk 0:01:11]}  Qc1 {[%clk 0:00:04]} 34. Qxe6+ {[%clk 0:01:10]}  Kh8 {[%clk 0:00:04]} 35. Qe8+ {[%clk 0:01:05]}  Kh7 {[%clk 0:00:04]} 36. Qe2 {[%clk 0:01:04]}  hxg3 {[%clk 0:00:03]} 37. fxg3 {[%clk 0:01:04]}  Nxf1 {[%clk 0:00:02]} 38. Qxf1 {[%clk 0:01:02]}  Qxb2 {[%clk 0:00:03]} 39. Qf5+ {[%clk 0:01:01]}  Kh8 {[%clk 0:00:03]} 40. Qh5+ {[%clk 0:01:00]}  Kg8 {[%clk 0:00:03]} 41. Qxd5+ {[%clk 0:01:00]}  Kh8 {[%clk 0:00:03]} 42. Qh5+ {[%clk 0:00:54]}  Kg8 {[%clk 0:00:03]} 43. Qe8+ {[%clk 0:00:54]}  Kh7 {[%clk 0:00:03]} 44. Qe4+ {[%clk 0:00:54]}  Kh8 {[%clk 0:00:03]} 45. a4 {[%clk 0:00:55]}  Qc1+ {[%clk 0:00:03]} 46. Kg2 {[%clk 0:00:55]}  Qd2+ {[%clk 0:00:03]} 47. Kf3 {[%clk 0:00:55]}  Qc3+ {[%clk 0:00:03]} 48. Kg4 {[%clk 0:00:56]}  Qc8+ {[%clk 0:00:03]} 49. Qf5 {[%clk 0:00:51]}  Qc4+ {[%clk 0:00:03]} 50. Qf4 {[%clk 0:00:51]}  Qe2+ {[%clk 0:00:03]} 51. Kh4 {[%clk 0:00:48]}  Qe7+ {[%clk 0:00:03]} 52. Qg5 {[%clk 0:00:47]}  Qb4+ {[%clk 0:00:03]} 53. Qf4 {[%clk 0:00:41]}  Qe7+ {[%clk 0:00:03]} 54. Kg4 {[%clk 0:00:42]}  Qe6+ {[%clk 0:00:03]} 55. Kf3 {[%clk 0:00:40]}  Qb3+ {[%clk 0:00:03]} 56. Kf2 {[%clk 0:00:38]}  Qa2+ {[%clk 0:00:03]} 57. Ke3 {[%clk 0:00:37]}  Qb3+ {[%clk 0:00:03]} 58. Kd2 {[%clk 0:00:36]}  Qb2+ {[%clk 0:00:03]} 59. Kd3 {[%clk 0:00:36]}  Qb3+ {[%clk 0:00:04]} 60. Ke2 {[%clk 0:00:35]}  Qb2+ {[%clk 0:00:04]} 61. Kf3 {[%clk 0:00:35]}  Qb3+ {[%clk 0:00:04]} 62. Qe3 {[%clk 0:00:35]}  Qxa4 {[%clk 0:00:04]} 63. h4 {[%clk 0:00:34]}  Qc6+ {[%clk 0:00:04]} 64. Qe4 {[%clk 0:00:34]}  Qf6+ {[%clk 0:00:04]} 65. Qf4 {[%clk 0:00:33]}  Qc3+ {[%clk 0:00:05]} 66. Kg4 {[%clk 0:00:33]}  Qc8+ {[%clk 0:00:04]} 67. Qf5 {[%clk 0:00:33]}  Qc4+ {[%clk 0:00:05]} 68. Kh3 {[%clk 0:00:33]}  Qd4 {[%clk 0:00:02]} 69. Qh5+ {[%clk 0:00:31]}  Kg8 {[%clk 0:00:02]} 70. Qe8+ {[%clk 0:00:31]}  Kh7 {[%clk 0:00:03]} 71. Qe6 {[%clk 0:00:30]}  Qf2 {[%clk 0:00:02]} 72. Qe4+ {[%clk 0:00:29]}  Kh8 {[%clk 0:00:02]} 73. Kg4 {[%clk 0:00:29]}  Qg1 {[%clk 0:00:02]} 74. Qe8+ {[%clk 0:00:26]}  Kh7 {[%clk 0:00:02]} 75. Qh5+ {[%clk 0:00:26]}  Kg8 {[%clk 0:00:03]} 76. Qd5+ {[%clk 0:00:23]}  Kh7 {[%clk 0:00:03]} 77. Qd3+ {[%clk 0:00:18]}  Kh8 {[%clk 0:00:03]} 78. Kh5 {[%clk 0:00:16]}  Qf2 {[%clk 0:00:03]} 79. Qd8+ {[%clk 0:00:15]}  Kh7 {[%clk 0:00:03]} 80. Qd3+ {[%clk 0:00:13]}  Kh8 {[%clk 0:00:03]} 81. Kg4 {[%clk 0:00:12]}  Qf6 {[%clk 0:00:03]} 82. Qf5 {[%clk 0:00:11]}  Qd4+ {[%clk 0:00:03]} 83. Kg5 {[%clk 0:00:12]}  Qd2+ {[%clk 0:00:03]} 84. Kg6 {[%clk 0:00:10]}  Qd6+ {[%clk 0:00:03]} 85. Kf7 {[%clk 0:00:09]}  Qc7+ {[%clk 0:00:02]} 86. Ke8 {[%clk 0:00:07]}  Qb8+ {[%clk 0:00:02]} 87. Ke7 {[%clk 0:00:07]}  Qc7+ {[%clk 0:00:03]} 88. Qd7 {[%clk 0:00:07]}  Qe5+ {[%clk 0:00:03]} 89. Kf7 {[%clk 0:00:06]}  Qf6+ {[%clk 0:00:03]} 90. Ke8 {[%clk 0:00:06]}  Qe5+ {[%clk 0:00:03]} 91. Qe7 {[%clk 0:00:06]}  Qxg3 {[%clk 0:00:03]} 92. Qf8+ {[%clk 0:00:02]}  Kh7 {[%clk 0:00:04]} 93. Qf5+ {[%clk 0:00:02]}  Qg6+ {[%clk 0:00:04]} 94. Qxg6+ {[%clk 0:00:01]}  Kxg6 {[%clk 0:00:05]} 95. Kf8 {[%clk 0:00:02]}  Kh6 {[%clk 0:00:05]} 96. Kf7 {[%clk 0:00:02]}  g6 {[%clk 0:00:06]} 97. Kf6 {[%clk 0:00:03]}  Kh5 {[%clk 0:00:07]} 98. Kg7 {[%clk 0:00:03]}  Kxh4 {[%clk 0:00:06]} 99. Kxg6 {[%clk 0:00:04]} 1/2-1/2


[Site "https://www.chess.com"]

[Event "Titled Tuesday Blitz August 17 2021"]
[White "Avramidou, Anastasia"]
[Black "Yilmaz, Mustafa"]
[WhiteFideId "4239873"]
[BlackFideId "6302718"]
[WhiteElo "2183"]
[BlackElo "2518"]
[Result "0-1"]
[Round "01"]
[TimeControl "180+1"]
[Date "2021.08.17"]
[WhiteClock "0:00:10"]
[BlackClock "0:00:06"]

1. d4 {[%clk 0:02:59]}  d5 {[%clk 0:02:59]} 2. c4 {[%clk 0:02:59]}  c6 {[%clk 0:03:00]} 3. cxd5 {[%clk 0:02:59]}  cxd5 {[%clk 0:03:01]} 4. Nc3 {[%clk 0:03:00]}  Nf6 {[%clk 0:03:01]} 5. Bf4 {[%clk 0:03:00]}  Nc6 {[%clk 0:03:01]} 6. e3 {[%clk 0:03:01]}  a6 {[%clk 0:03:01]} 7. Nf3 {[%clk 0:03:01]}  Bg4 {[%clk 0:03:01]} 8. Be2 {[%clk 0:03:01]}  e6 {[%clk 0:03:00]} 9. h3 {[%clk 0:03:02]}  Bxf3 {[%clk 0:03:00]} 10. Bxf3 {[%clk 0:03:01]}  Bd6 {[%clk 0:03:00]} 11. Bg5 {[%clk 0:03:00]}  Be7 {[%clk 0:03:00]} 12. O-O {[%clk 0:03:00]}  O-O {[%clk 0:03:00]} 13. Rc1 {[%clk 0:03:00]}  Nd7 {[%clk 0:02:56]} 14. Bf4 {[%clk 0:02:59]}  Nb6 {[%clk 0:02:42]} 15. Na4 {[%clk 0:02:57]}  Nxa4 {[%clk 0:02:41]} 16. Qxa4 {[%clk 0:02:58]}  Qd7 {[%clk 0:02:41]} 17. Rc3 {[%clk 0:02:37]}  Rfc8 {[%clk 0:02:41]} 18. Rfc1 {[%clk 0:02:36]}  h6 {[%clk 0:02:33]} 19. Qd1 {[%clk 0:02:24]}  Bd6 {[%clk 0:02:32]} 20. Bxd6 {[%clk 0:02:24]}  Qxd6 {[%clk 0:02:33]} 21. a3 {[%clk 0:02:24]}  Rc7 {[%clk 0:02:32]} 22. Be2 {[%clk 0:02:22]}  Rac8 {[%clk 0:02:31]} 23. Qd2 {[%clk 0:02:21]}  Na5 {[%clk 0:02:15]} 24. Rxc7 {[%clk 0:02:20]}  Rxc7 {[%clk 0:02:16]} 25. Rxc7 {[%clk 0:02:19]}  Qxc7 {[%clk 0:02:17]} 26. Bd3 {[%clk 0:02:12]}  b5 {[%clk 0:01:56]} 27. g3 {[%clk 0:02:07]}  Nc4 {[%clk 0:01:43]} 28. Qc3 {[%clk 0:01:51]}  Qb6 {[%clk 0:01:41]} 29. b3 {[%clk 0:01:43]}  Nd6 {[%clk 0:01:40]} 30. a4 {[%clk 0:01:41]}  bxa4 {[%clk 0:01:26]} 31. bxa4 {[%clk 0:01:42]}  a5 {[%clk 0:01:27]} 32. Kg2 {[%clk 0:01:23]}  g6 {[%clk 0:01:26]} 33. Bc2 {[%clk 0:01:18]}  Kg7 {[%clk 0:01:20]} 34. h4 {[%clk 0:01:17]}  h5 {[%clk 0:01:20]} 35. Kf3 {[%clk 0:01:02]}  Nc4 {[%clk 0:01:13]} 36. Bd3 {[%clk 0:00:57]}  Nd6 {[%clk 0:01:07]} 37. Bc2 {[%clk 0:00:57]}  Kf6 {[%clk 0:01:08]} 38. Bd3 {[%clk 0:00:57]}  Ke7 {[%clk 0:01:08]} 39. Bc2 {[%clk 0:00:57]}  Kd7 {[%clk 0:01:04]} 40. Ke2 {[%clk 0:00:57]}  Ke7 {[%clk 0:00:39]} 41. Kf3 {[%clk 0:00:57]}  Kf6 {[%clk 0:00:39]} 42. Bd3 {[%clk 0:00:55]}  g5 {[%clk 0:00:40]} 43. hxg5+ {[%clk 0:00:53]}  Kxg5 {[%clk 0:00:40]} 44. Bc2 {[%clk 0:00:53]}  Qd8 {[%clk 0:00:34]} 45. Kg2 {[%clk 0:00:52]}  Kf6 {[%clk 0:00:30]} 46. Bd1 {[%clk 0:00:39]}  Ne4 {[%clk 0:00:26]} 47. Qc2 {[%clk 0:00:28]}  Qh8 {[%clk 0:00:19]} 48. Bf3 {[%clk 0:00:28]}  Nd6 {[%clk 0:00:20]} 49. Qc5 {[%clk 0:00:25]}  Nc4 {[%clk 0:00:19]} 50. Be2 {[%clk 0:00:24]}  Nd2 {[%clk 0:00:16]} 51. Qxa5 {[%clk 0:00:21]}  Ne4 {[%clk 0:00:14]} 52. Bf3 {[%clk 0:00:22]}  Ng5 {[%clk 0:00:15]} 53. Qc7 {[%clk 0:00:19]}  Kg6 {[%clk 0:00:15]} 54. Qe5 {[%clk 0:00:18]}  f6 {[%clk 0:00:16]} 55. Qd6 {[%clk 0:00:17]}  h4 {[%clk 0:00:16]} 56. Bg4 {[%clk 0:00:16]}  h3+ {[%clk 0:00:12]} 57. Kh2 {[%clk 0:00:16]}  f5 {[%clk 0:00:12]} 58. Be2 {[%clk 0:00:15]}  Qa8 {[%clk 0:00:12]} 59. Qb4 {[%clk 0:00:10]}  Ne4 {[%clk 0:00:08]} 60. a5 {[%clk 0:00:10]}  Nxf2 {[%clk 0:00:07]} 61. a6 {[%clk 0:00:10]}  Ng4+ {[%clk 0:00:07]} 62. Kxh3 {[%clk 0:00:10]}  Qh8+ {[%clk 0:00:05]} 63. Kg2 {[%clk 0:00:10]}  Qh2+ {[%clk 0:00:05]} 64. Kf1 {[%clk 0:00:10]}  Qf2# {[%clk 0:00:06]} 0-1


[Site "https://www.chess.com"]

[Event "Titled Tuesday Blitz August 17 2021"]
[White "Bacrot, Etienne"]
[Black "Gallegos Diaz, Carlos Alberto"]
[WhiteFideId "605506"]
[BlackFideId "3900886"]
[WhiteElo "2673"]
[BlackElo "2362"]
[Result "1-0"]
[Round "01"]
[TimeControl "180+1"]
[Date "2021.08.17"]
[WhiteClock "0:01:41"]
[BlackClock "0:00:38"]

1. e4 {[%clk 0:03:00]}  c5 {[%clk 0:02:54]} 2. Nf3 {[%clk 0:03:00]}  d6 {[%clk 0:02:54]} 3. d4 {[%clk 0:03:00]}  cxd4 {[%clk 0:02:55]} 4. Nxd4 {[%clk 0:03:00]}  Nf6 {[%clk 0:02:55]} 5. Nc3 {[%clk 0:03:01]}  a6 {[%clk 0:02:55]} 6. h3 {[%clk 0:03:00]}  e6 {[%clk 0:02:55]} 7. g4 {[%clk 0:03:00]}  Be7 {[%clk 0:02:54]} 8. Bg2 {[%clk 0:02:59]}  Qc7 {[%clk 0:02:52]} 9. Be3 {[%clk 0:02:57]}  Nbd7 {[%clk 0:02:47]} 10. Qe2 {[%clk 0:02:56]}  Ne5 {[%clk 0:02:43]} 11. O-O-O {[%clk 0:02:53]}  Nc4 {[%clk 0:02:43]} 12. f4 {[%clk 0:02:49]}  Nxe3 {[%clk 0:02:41]} 13. Qxe3 {[%clk 0:02:49]}  Rb8 {[%clk 0:02:26]} 14. Kb1 {[%clk 0:02:44]}  Nd7 {[%clk 0:02:24]} 15. Rhe1 {[%clk 0:02:21]}  b5 {[%clk 0:02:20]} 16. Nf5 {[%clk 0:02:16]}  exf5 {[%clk 0:01:42]} 17. Nd5 {[%clk 0:02:13]}  Qc5 {[%clk 0:01:27]} 18. exf5 {[%clk 0:02:12]}  O-O {[%clk 0:01:15]} 19. Nxe7+ {[%clk 0:02:05]}  Kh8 {[%clk 0:01:14]} 20. Qxc5 {[%clk 0:02:03]}  Nxc5 {[%clk 0:01:11]} 21. Rxd6 {[%clk 0:02:02]}  Bb7 {[%clk 0:01:05]} 22. Bxb7 {[%clk 0:01:58]}  Nxb7 {[%clk 0:01:06]} 23. Rdd1 {[%clk 0:01:57]}  Na5 {[%clk 0:01:04]} 24. b3 {[%clk 0:01:55]}  Rfe8 {[%clk 0:00:59]} 25. g5 {[%clk 0:01:55]}  b4 {[%clk 0:00:47]} 26. Kb2 {[%clk 0:01:52]}  Nb7 {[%clk 0:00:46]} 27. Rd5 {[%clk 0:01:46]}  Red8 {[%clk 0:00:38]} 28. Rxd8+ {[%clk 0:01:41]}  Rxd8 {[%clk 0:00:38]} 29. Nc6 {[%clk 0:01:41]} 1-0


[Site "https://www.chess.com"]

[Event "Titled Tuesday Blitz August 17 2021"]
[White "Begunov, Konstantin"]
[Black "Awatramani, Janak"]
[WhiteFideId "4118510"]
[BlackFideId "2608359"]
[WhiteElo "2262"]
[BlackElo "2869"]
[Result "0-1"]
[Round "01"]
[TimeControl "180+1"]
[Date "2021.08.17"]
[WhiteClock "0:00:21"]
[BlackClock "0:00:18"]

1. d4 {[%clk 0:02:59]}  d5 {[%clk 0:02:56]} 2. c4 {[%clk 0:02:58]}  e6 {[%clk 0:02:54]} 3. Nc3 {[%clk 0:02:59]}  Nf6 {[%clk 0:02:54]} 4. cxd5 {[%clk 0:02:58]}  exd5 {[%clk 0:02:54]} 5. Bg5 {[%clk 0:02:59]}  Be7 {[%clk 0:02:54]} 6. e3 {[%clk 0:02:59]}  Bf5 {[%clk 0:02:54]} 7. Qb3 {[%clk 0:02:58]}  Nc6 {[%clk 0:02:42]} 8. Bxf6 {[%clk 0:02:57]}  Bxf6 {[%clk 0:02:36]} 9. Qxd5 {[%clk 0:02:57]}  Qc8 {[%clk 0:02:25]} 10. Bb5 {[%clk 0:02:17]}  O-O {[%clk 0:02:24]} 11. Nge2 {[%clk 0:02:13]}  Nb4 {[%clk 0:02:23]} 12. Qf3 {[%clk 0:02:04]}  Nc2+ {[%clk 0:02:21]} 13. Kd2 {[%clk 0:02:04]}  Nxa1 {[%clk 0:02:21]} 14. Rxa1 {[%clk 0:02:05]}  c6 {[%clk 0:02:19]} 15. Bd3 {[%clk 0:02:00]}  Bxd3 {[%clk 0:02:19]} 16. Kxd3 {[%clk 0:02:01]}  Re8 {[%clk 0:02:19]} 17. Ne4 {[%clk 0:01:58]}  Be7 {[%clk 0:02:18]} 18. Rc1 {[%clk 0:01:55]}  b6 {[%clk 0:02:15]} 19. N2c3 {[%clk 0:01:52]}  Qa6+ {[%clk 0:02:14]} 20. Kc2 {[%clk 0:01:51]}  b5 {[%clk 0:02:06]} 21. Kb1 {[%clk 0:01:49]}  b4 {[%clk 0:02:05]} 22. Ne2 {[%clk 0:01:46]}  b3 {[%clk 0:02:00]} 23. axb3 {[%clk 0:01:42]}  Rab8 {[%clk 0:01:56]} 24. Rc3 {[%clk 0:01:42]}  Bb4 {[%clk 0:01:56]} 25. Rc4 {[%clk 0:01:41]}  Ba5 {[%clk 0:01:39]} 26. Nc1 {[%clk 0:01:40]}  Bc7 {[%clk 0:01:26]} 27. Nc5 {[%clk 0:01:38]}  Qb5 {[%clk 0:01:22]} 28. Nd7 {[%clk 0:01:31]}  Rbd8 {[%clk 0:01:21]} 29. Rc5 {[%clk 0:01:20]}  Qf1 {[%clk 0:01:08]} 30. Qxc6 {[%clk 0:01:16]}  Bxh2 {[%clk 0:01:05]} 31. Rg5 {[%clk 0:01:03]}  Re6 {[%clk 0:00:54]} 32. Qd5 {[%clk 0:00:37]}  Kh8 {[%clk 0:00:32]} 33. Rf5 {[%clk 0:00:27]}  Kg8 {[%clk 0:00:08]} 34. Nf6+ {[%clk 0:00:24]}  gxf6 {[%clk 0:00:09]} 35. Qxd8+ {[%clk 0:00:24]}  Kg7 {[%clk 0:00:10]} 36. Qd5 {[%clk 0:00:21]}  Re7 {[%clk 0:00:06]} 37. g3 {[%clk 0:00:21]}  Rc7 {[%clk 0:00:06]} 38. b4 {[%clk 0:00:12]}  Rxc1+ {[%clk 0:00:04]} 39. Ka2 {[%clk 0:00:13]}  Qa6+ {[%clk 0:00:03]} 40. Kb3 {[%clk 0:00:14]}  Qe6 {[%clk 0:00:03]} 41. e4 {[%clk 0:00:13]}  Bg1 {[%clk 0:00:03]} 42. Qxe6 {[%clk 0:00:11]}  fxe6 {[%clk 0:00:04]} 43. Rf3 {[%clk 0:00:11]}  Rf1 {[%clk 0:00:04]} 44. d5 {[%clk 0:00:10]}  exd5 {[%clk 0:00:05]} 45. exd5 {[%clk 0:00:10]}  Rxf2 {[%clk 0:00:06]} 46. Rd3 {[%clk 0:00:10]}  Rg2 {[%clk 0:00:03]} 47. d6 {[%clk 0:00:11]}  Bb6 {[%clk 0:00:04]} 48. d7 {[%clk 0:00:11]}  h5 {[%clk 0:00:04]} 49. Kc4 {[%clk 0:00:10]}  Bd8 {[%clk 0:00:03]} 50. b3 {[%clk 0:00:10]}  Kf7 {[%clk 0:00:03]} 51. Re3 {[%clk 0:00:10]}  Rd2 {[%clk 0:00:02]} 52. Rd3 {[%clk 0:00:05]}  Rxd3 {[%clk 0:00:02]} 53. Kxd3 {[%clk 0:00:06]}  Ke7 {[%clk 0:00:03]} 54. Ke4 {[%clk 0:00:06]}  Kxd7 {[%clk 0:00:04]} 55. Kf5 {[%clk 0:00:07]}  Ke7 {[%clk 0:00:04]} 56. Kg6 {[%clk 0:00:08]}  Bc7 {[%clk 0:00:05]} 57. Kxh5 {[%clk 0:00:07]}  Bxg3 {[%clk 0:00:05]} 58. Kg4 {[%clk 0:00:08]}  Bd6 {[%clk 0:00:06]} 59. Kf5 {[%clk 0:00:09]}  Bxb4 {[%clk 0:00:06]} 60. Ke4 {[%clk 0:00:09]}  Bc3 {[%clk 0:00:07]} 61. Kf5 {[%clk 0:00:10]}  Be5 {[%clk 0:00:08]} 62. Ke4 {[%clk 0:00:10]}  Kd6 {[%clk 0:00:09]} 63. Kf5 {[%clk 0:00:11]}  Kc5 {[%clk 0:00:09]} 64. Ke4 {[%clk 0:00:11]}  Kb4 {[%clk 0:00:10]} 65. Kd3 {[%clk 0:00:12]}  Kxb3 {[%clk 0:00:11]} 66. Ke4 {[%clk 0:00:12]}  a5 {[%clk 0:00:12]} 67. Kd5 {[%clk 0:00:13]}  Kb2 {[%clk 0:00:13]} 68. Ke4 {[%clk 0:00:14]}  a4 {[%clk 0:00:14]} 69. Kd3 {[%clk 0:00:15]}  a3 {[%clk 0:00:15]} 70. Kc4 {[%clk 0:00:16]}  a2 {[%clk 0:00:16]} 71. Kd5 {[%clk 0:00:17]}  a1=Q {[%clk 0:00:17]} 72. Ke4 {[%clk 0:00:17]}  Qd1 {[%clk 0:00:16]} 73. Kf5 {[%clk 0:00:17]}  Bc3 {[%clk 0:00:16]} 74. Ke6 {[%clk 0:00:18]}  Qd4 {[%clk 0:00:16]} 75. Kf5 {[%clk 0:00:19]}  Qe5+ {[%clk 0:00:16]} 76. Kg6 {[%clk 0:00:19]}  f5 {[%clk 0:00:17]} 77. Kf7 {[%clk 0:00:20]}  f4 {[%clk 0:00:17]} 78. Kg6 {[%clk 0:00:21]}  Qf6+ {[%clk 0:00:17]} 79. Kh5 {[%clk 0:00:20]}  Qg7 {[%clk 0:00:18]} 80. Kh4 {[%clk 0:00:20]}  Bf6+ {[%clk 0:00:18]} 81. Kh3 {[%clk 0:00:21]}  Qg3# {[%clk 0:00:18]} 0-1


[Site "https://www.chess.com"]

[Event "Titled Tuesday Blitz August 17 2021"]
[White "Bodnar, Nikolay"]
[Black "Grachev, Boris"]
[WhiteFideId "14106469"]
[BlackFideId "4129199"]
[WhiteElo "2296"]
[BlackElo "2580"]
[Result "0-1"]
[Round "01"]
[TimeControl "180+1"]
[Date "2021.08.17"]
[WhiteClock "0:00:30"]
[BlackClock "0:00:09"]

1. d4 {[%clk 0:02:59]}  d5 {[%clk 0:02:58]} 2. c4 {[%clk 0:02:59]}  e6 {[%clk 0:02:58]} 3. Nf3 {[%clk 0:02:59]}  Nf6 {[%clk 0:02:57]} 4. g3 {[%clk 0:02:59]}  Be7 {[%clk 0:02:56]} 5. Bg2 {[%clk 0:02:59]}  O-O {[%clk 0:02:56]} 6. O-O {[%clk 0:02:59]}  Nbd7 {[%clk 0:02:56]} 7. Qc2 {[%clk 0:02:56]}  c6 {[%clk 0:02:56]} 8. Nbd2 {[%clk 0:02:57]}  b6 {[%clk 0:02:56]} 9. e4 {[%clk 0:02:57]}  dxc4 {[%clk 0:02:56]} 10. Nxc4 {[%clk 0:02:52]}  Bb7 {[%clk 0:02:56]} 11. Rd1 {[%clk 0:02:52]}  c5 {[%clk 0:02:56]} 12. Ng5 {[%clk 0:02:24]}  h6 {[%clk 0:02:41]} 13. d5 {[%clk 0:02:25]}  exd5 {[%clk 0:02:31]} 14. exd5 {[%clk 0:02:22]}  hxg5 {[%clk 0:02:27]} 15. d6 {[%clk 0:02:22]}  Bxg2 {[%clk 0:02:28]} 16. Kxg2 {[%clk 0:02:21]}  Bxd6 {[%clk 0:02:01]} 17. Nxd6 {[%clk 0:02:20]}  g4 {[%clk 0:01:47]} 18. b3 {[%clk 0:02:19]}  Qc7 {[%clk 0:01:46]} 19. Bb2 {[%clk 0:02:19]}  Qc6+ {[%clk 0:01:46]} 20. Kg1 {[%clk 0:02:15]}  Rad8 {[%clk 0:01:38]} 21. Qf5 {[%clk 0:01:54]}  Qf3 {[%clk 0:01:20]} 22. Qg5 {[%clk 0:01:54]}  Rfe8 {[%clk 0:01:09]} 23. Nf5 {[%clk 0:01:52]}  Qxf2+ {[%clk 0:01:06]} 24. Kxf2 {[%clk 0:01:45]}  Ne4+ {[%clk 0:01:06]} 25. Kf1 {[%clk 0:01:41]}  Nxg5 {[%clk 0:01:07]} 26. Nxg7 {[%clk 0:01:27]}  Re3 {[%clk 0:01:00]} 27. Nh5 {[%clk 0:01:24]}  Rf3+ {[%clk 0:01:00]} 28. Kg2 {[%clk 0:01:23]}  Ne4 {[%clk 0:00:46]} 29. Kg1 {[%clk 0:01:18]}  b5 {[%clk 0:00:24]} 30. Rd5 {[%clk 0:01:13]}  c4 {[%clk 0:00:22]} 31. bxc4 {[%clk 0:01:13]}  bxc4 {[%clk 0:00:23]} 32. Re1 {[%clk 0:01:13]}  c3 {[%clk 0:00:20]} 33. Ba3 {[%clk 0:01:13]}  Nf2 {[%clk 0:00:15]} 34. Be7 {[%clk 0:01:10]}  Rc8 {[%clk 0:00:09]} 35. Rxd7 {[%clk 0:01:09]}  c2 {[%clk 0:00:10]} 36. Bg5 {[%clk 0:00:39]}  Nh3+ {[%clk 0:00:09]} 37. Kg2 {[%clk 0:00:36]}  Rf2+ {[%clk 0:00:09]} 38. Kh1 {[%clk 0:00:36]}  Nxg5 {[%clk 0:00:09]} 39. Kg1 {[%clk 0:00:30]}  Nh3+ {[%clk 0:00:09]} 40. Kh1 {[%clk 0:00:30]}  c1=Q {[%clk 0:00:09]} 0-1


[Site "https://www.chess.com"]